bitfinex/quotes_BTCUSD_20251007
["timestamp","ask_amount","ask_price","bid_price","bid_amount"]
[1759847050206,0.00104638,123170.0,123160.0,1.80128563]
[1759847050426,0.00104638,123170.0,123160.0,1.88440769]
[1759847050655,0.00104638,123170.0,123160.0,1.69924369]
[1759847050884,0.00104638,123170.0,123160.0,1.49264369]
[1759847051097,0.00304638,123170.0,123160.0,1.49264369]
[1759847051304,0.00604638,123170.0,123160.0,1.49764369]
[1759847051735,0.00604638,123170.0,123160.0,2.40800369]
[1759847052417,0.00604638,123170.0,123160.0,1.00469769]
[1759847052644,0.00604638,123170.0,123160.0,1.54981769]
[1759847053105,0.00604638,123170.0,123160.0,1.12793769]
[1759847053350,0.00604638,123170.0,123160.0,1.54981769]
[1759847053567,0.00604638,123170.0,123160.0,0.55513769]
[1759847054189,0.00604638,123170.0,123160.0,1.21229769]
[1759847054407,0.00604638,123170.0,123160.0,0.51944369]
[1759847055073,0.00604638,123170.0,123160.0,1.17656369]
[1759847055549,0.00604638,123170.0,123160.0,0.51944369]
[1759847055799,0.05715638,123170.0,123160.0,1.17656369]
[1759847056008,0.02545638,123170.0,123160.0,1.17656369]
[1759847056248,0.02545638,123170.0,123160.0,0.98411963]
[1759847056460,0.00604638,123170.0,123160.0,1.12640563]
[1759847056675,0.00604638,123170.0,123160.0,0.46928563]
[1759847056912,0.00604638,123170.0,123160.0,1.11890563]
[1759847057135,0.28458358,123170.0,123160.0,0.65865328]
[1759847057346,0.28458358,123170.0,123160.0,0.89389328]
[1759847057587,0.26953358,123170.0,123160.0,0.89389328]
[1759847057995,0.26953358,123170.0,123160.0,0.3095829]
[1759847058198,0.26953358,123170.0,123160.0,0.89381328]
[1759847058409,0.26953358,123170.0,123160.0,0.23677328]
[1759847058584,0.26953358,123170.0,123160.0,0.7314229]
[1759847058749,0.26953358,123170.0,123160.0,0.82443038]
[1759847058951,0.26953358,123170.0,123160.0,0.16739038]
[1759847059173,0.26953358,123170.0,123160.0,0.82443038]
[1759847059921,0.33458358,123170.0,123160.0,0.66204]
[1759847060122,0.33458358,123170.0,123160.0,0.90442718]
[1759847060428,0.33458358,123170.0,123160.0,0.7420368]
[1759847060657,0.33458358,123170.0,123160.0,0.0849968]
[1759847060891,0.37303358,123170.0,123160.0,0.34248]
[1759847061089,0.37303358,123170.0,123160.0,0.005]
[1759847061292,0.37303358,123170.0,123160.0,0.66204]
[1759847061708,0.45615564,123170.0,123160.0,0.005]
[1759847061859,0.45615564,123170.0,123160.0,0.32452]
[1759847062291,0.45415564,123170.0,123160.0,0.32452]
[1759847062497,0.45415564,123170.0,123160.0,0.005]
[1759847062697,0.45615564,123170.0,123160.0,0.005]
[1759847063113,0.45615564,123170.0,123160.0,0.08936]
[1759847063340,0.45615564,123170.0,123150.0,0.33768165]
[1759847063341,0.16239038,123160.0,123150.0,0.00020165]
[1759847063562,0.85842602,123160.0,123150.0,0.23536165]
[1759847063773,0.99344602,123160.0,123150.0,0.23536165]
[1759847063984,0.74012244,123160.0,123150.0,0.23536165]
[1759847064190,1.36670627,123160.0,123150.0,0.00020165]
[1759847064369,0.77738269,123160.0,123150.0,0.24136165]
[1759847064596,1.37070627,123160.0,123150.0,0.00620165]
[1759847064805,1.36670627,123160.0,123150.0,0.23536165]
[1759847065028,1.44670307,123160.0,123150.0,0.00420165]
[1759847065239,2.04302665,123160.0,123150.0,0.00420165]
[1759847065444,2.04302665,123160.0,123150.0,0.01196165]
[1759847065675,2.06739916,123160.0,123150.0,0.01196165]
[1759847065858,2.06739916,123160.0,123150.0,0.10740165]
[1759847065859,1.98740236,123160.0,123150.0,0.10740165]
[1759847066005,1.98940236,123160.0,123150.0,0.10740165]
[1759847066436,1.98740236,123160.0,123150.0,0.10740165]
[1759847066800,2.07239916,123160.0,123150.0,0.18580165]
[1759847067154,1.56048159,123160.0,123150.0,0.18580165]
[1759847067605,0.16244314,123120.0,123110.0,0.00834325]
[1759847067820,0.2455652,123120.0,123110.0,0.42188]
[1759847068027,0.2455652,123120.0,123100.0,0.0004]
[1759847068028,0.16245633,123110.0,123100.0,0.0004]
[1759847068214,0.20090633,123110.0,123100.0,0.0004]
[1759847068436,0.31706633,123110.0,123100.0,0.42228]
[1759847068773,0.31706633,123110.0,123100.0,0.23560733]
[1759847068980,0.31706633,123110.0,123100.0,0.65748733]
[1759847069215,0.31706633,123110.0,123100.0,0.72410867]
[1759847069419,0.32106633,123110.0,123100.0,0.72510867]
[1759847070731,0.32306633,123110.0,123100.0,0.72510867]
[1759847071150,0.18786633,123110.0,123100.0,0.8875782]
[1759847071313,0.18186633,123110.0,123100.0,0.8865782]
[1759847071515,0.21361633,123110.0,123100.0,0.8865782]
[1759847071745,0.21761633,123110.0,123100.0,0.8865782]
[1759847071945,0.18586633,123110.0,123100.0,0.8865782]
[1759847072137,0.16645633,123110.0,123100.0,0.81999686]
[1759847073034,0.21768633,123110.0,123100.0,0.81999686]
[1759847073203,0.21768633,123110.0,123100.0,0.65752733]
[1759847073411,0.29754633,123110.0,123100.0,0.00044733]
[1759847073622,0.31905633,123110.0,123100.0,0.65760733]
[1759847074374,0.21868633,123110.0,123100.0,0.82007686]
[1759847074563,0.21868633,123110.0,123100.0,0.90007366]
[1759847074564,0.007,123110.0,123100.0,0.90007366]
[1759847075191,0.007,123110.0,123100.0,2.29930162]
[1759847075542,0.007,123110.0,123100.0,2.28884562]
[1759847075737,0.007,123110.0,123100.0,1.50472762]
[1759847075938,0.007,123110.0,123100.0,1.49120762]
[1759847078009,0.057,123110.0,123100.0,1.49120762]
[1759847078807,0.057,123110.0,123100.0,1.4922163]
[1759847078959,0.057,123110.0,123100.0,1.4921763]
[1759847079659,0.057,123110.0,123100.0,0.7336193]
[1759847079894,0.07541,123110.0,123100.0,0.90104234]
[1759847080069,0.057,123110.0,123100.0,0.90104234]
[1759847080273,0.07541,123110.0,123100.0,0.90104234]
[1759847080474,0.057,123110.0,123100.0,0.90104234]
[1759847081237,0.057,123110.0,123100.0,1.1498073]
[1759847083429,0.057,123110.0,123100.0,1.4898073]
[1759847084241,0.05,123110.0,123100.0,1.51417443]
[1759847084685,0.056,123110.0,123100.0,1.51617443]
[1759847084989,0.051,123110.0,123100.0,1.51617443]
[1759847085220,0.051,123110.0,123100.0,1.61865443]
[1759847085476,0.056,123110.0,123100.0,1.2241354]
[1759847085745,0.051,123110.0,123100.0,0.4645354]
[1759847085957,0.26200633,123110.0,123100.0,0.66792234]
[1759847086165,0.26200633,123110.0,123100.0,0.81856234]
[1759847086392,0.26600633,123110.0,123100.0,0.90096234]
[1759847086595,0.26700633,123110.0,123100.0,0.90396234]
[1759847086808,0.10455,123110.0,123100.0,0.90396234]
[1759847087629,0.10355,123110.0,123100.0,0.90096234]
[1759847087933,0.09855,123110.0,123100.0,0.90096234]
[1759847088134,0.32788633,123110.0,123100.0,0.24492234]
[1759847088348,0.35091633,123110.0,123100.0,0.82296554]
[1759847088507,0.29920633,123110.0,123100.0,0.82196554]
[1759847088888,0.30620633,123110.0,123100.0,0.82296554]
[1759847089867,0.30620633,123110.0,123100.0,0.16592554]
[1759847090071,0.30620633,123110.0,123100.0,0.82296554]
[1759847090222,0.30620633,123110.0,123100.0,0.90296234]
[1759847090426,0.35291633,123110.0,123100.0,0.90292234]
[1759847090646,0.059,123110.0,123100.0,0.90292234]
[1759847091718,0.10755,123110.0,123100.0,0.90292234]
[1759847092681,0.059,123110.0,123100.0,0.90292234]
[1759847092948,0.10755,123110.0,123100.0,0.90292234]
[1759847095917,0.059,123110.0,123100.0,0.90292234]
[1759847096228,0.059,123110.0,123100.0,1.04462234]
[1759847096965,0.059,123110.0,123100.0,1.4978963]
[1759847097556,0.08914,123110.0,123100.0,0.48515601]
[1759847097773,0.35291633,123110.0,123100.0,0.16592554]
[1759847098689,0.35291633,123110.0,123100.0,0.82288554]
[1759847100093,0.37135633,123110.0,123100.0,0.00345601]
[1759847100337,0.37135633,123110.0,123100.0,0.66045601]
[1759847100536,0.37135633,123110.0,123100.0,0.23837601]
[1759847100714,0.37135633,123110.0,123100.0,0.82288554]
[1759847100912,0.37135633,123110.0,123100.0,0.00345601]
[1759847101163,0.37135633,123110.0,123100.0,0.66041601]
[1759847101314,0.36435633,123110.0,123100.0,0.65941601]
[1759847101518,0.37735633,123110.0,123100.0,0.00545601]
[1759847101764,0.37535633,123110.0,123100.0,0.66141601]
[1759847101974,0.36235633,123110.0,123100.0,0.65841601]
[1759847102425,0.37535633,123110.0,123100.0,0.66041601]
[1759847102619,0.45847839,123110.0,123100.0,0.08785601]
[1759847102826,0.44547839,123110.0,123100.0,0.32077601]
[1759847103047,1.1191995,123110.0,123100.0,0.00145601]
[1759847103274,1.1441995,123110.0,123100.0,0.23637601]
[1759847103422,0.16048273,123090.0,123080.0,0.0848]
[1759847103641,0.9839691,123090.0,123080.0,0.00044728]
[1759847104471,0.9839691,123090.0,123080.0,0.23536728]
[1759847105052,1.0089691,123090.0,123080.0,0.22948728]
[1759847105264,1.0089691,123090.0,123080.0,0.00044728]
[1759847105479,1.3539691,123090.0,123080.0,0.23536728]
[1759847105695,1.4499659,123090.0,123080.0,0.23536728]
[1759847105837,1.4419668,123090.0,123080.0,0.23536728]
[1759847106049,1.4369668,123090.0,123080.0,0.00044728]
[1759847106249,0.84324249,123090.0,123080.0,1e-08]
[1759847106462,0.18749593,123080.0,123070.0,0.0004]
[1759847106825,0.30129969,123080.0,123070.0,0.00044731]
[1759847107030,0.44793969,123080.0,123070.0,0.00044731]
[1759847107384,0.39225799,123080.0,123070.0,0.00044731]
[1759847107604,0.39225799,123080.0,123070.0,0.11632731]
[1759847107605,0.30913593,123080.0,123070.0,0.11632731]
[1759847108088,0.27969593,123080.0,123070.0,0.27883645]
[1759847108255,0.27969593,123080.0,123060.0,0.16292197]
[1759847108571,0.17986914,123070.0,123060.0,0.20486457]
[1759847108725,0.16250914,123070.0,123060.0,0.16306628]
[1759847108923,0.20962914,123070.0,123060.0,0.16306628]
[1759847109320,0.20962914,123070.0,123060.0,0.16387365]
[1759847109522,0.20962914,123070.0,123060.0,0.39879365]
[1759847109954,0.02236,123070.0,123060.0,0.4641791]
[1759847110159,0.005,123070.0,123060.0,0.4641791]
[1759847110379,0.005,123070.0,123060.0,1.7209171]
[1759847110581,0.005,123070.0,123060.0,0.8109991]
[1759847110803,0.005,123070.0,123060.0,0.7409991]
[1759847111420,0.019,123070.0,123060.0,0.67561365]
[1759847111626,0.019,123070.0,123060.0,0.54197365]
[1759847112683,0.019,123070.0,123060.0,0.52780265]
[1759847114040,0.019,123070.0,123060.0,0.98107661]
[1759847114572,0.019,123070.0,123060.0,1.40315661]
[1759847114787,0.18596686,123090.0,123070.0,0.16249979]
[1759847115102,0.18596686,123090.0,123080.0,0.23488]
[1759847115260,0.001,123070.0,123060.0,0.58306308]
[1759847115463,0.01836,123070.0,123060.0,1.24006308]
[1759847115690,0.01736,123070.0,123060.0,1.24006308]
[1759847115879,0.26201593,123080.0,123060.0,1.24006308]
[1759847116134,0.27937593,123080.0,123070.0,0.16250914]
[1759847116352,0.30913593,123080.0,123070.0,0.21182424]
[1759847116574,0.26469593,123080.0,123070.0,0.21182424]
[1759847117139,0.012,123090.0,123080.0,0.16249593]
[1759847117512,0.01,123090.0,123080.0,0.72583989]
[1759847117742,0.22112229,123110.0,123090.0,0.16247097]
[1759847117958,0.26824229,123110.0,123100.0,0.31928]
[1759847118176,0.26824229,123110.0,123100.0,0.48174953]
[1759847118413,0.09766286,123110.0,123100.0,0.48174953]
[1759847118633,0.26011919,123110.0,123100.0,0.53106463]
[1759847118848,0.05054286,123110.0,123100.0,0.53904817]
[1759847119269,0.05054286,123110.0,123100.0,0.53919248]
[1759847119456,0.06654286,123110.0,123100.0,0.53919248]
[1759847119590,0.07054286,123110.0,123100.0,0.54019248]
[1759847119999,0.07054286,123110.0,123100.0,0.45575248]
[1759847120230,0.07054286,123110.0,123100.0,0.87787248]
[1759847120664,0.05454286,123110.0,123100.0,0.87787248]
[1759847120873,0.05054286,123110.0,123100.0,1.33014644]
[1759847121260,0.07354286,123110.0,123100.0,1.33314644]
[1759847121712,0.07354286,123110.0,123100.0,1.33310644]
[1759847122665,0.38263919,123110.0,123100.0,0.43320785]
[1759847122889,0.38263919,123110.0,123100.0,0.66800785]
[1759847123760,0.38263919,123110.0,123100.0,0.08754431]
[1759847123978,0.46576125,123110.0,123100.0,0.23794431]
[1759847124239,0.52858173,123110.0,123100.0,0.00314431]
[1759847124460,0.52858173,123110.0,123100.0,0.32234431]
[1759847124668,0.50558173,123110.0,123100.0,0.08454431]
[1759847124876,0.50558173,123110.0,123100.0,0.31930431]
[1759847125085,0.53158173,123110.0,123100.0,0.32330431]
[1759847125297,0.84958173,123110.0,123100.0,0.23590431]
[1759847125501,0.84558173,123110.0,123100.0,0.23490431]
[1759847125728,0.87358173,123110.0,123100.0,0.00314431]
[1759847125939,0.85258173,123110.0,123100.0,0.23590431]
[1759847126116,0.87758173,123110.0,123100.0,0.00114431]
[1759847126326,0.87758173,123110.0,123100.0,0.23590431]
[1759847127087,0.16246953,123100.0,123090.0,0.00020179]
[1759847127286,0.35058839,123100.0,123090.0,0.00524166]
[1759847127533,0.49522839,123100.0,123090.0,0.00524166]
[1759847127937,0.49322839,123100.0,123090.0,0.00524166]
[1759847128454,0.50022839,123100.0,123090.0,0.10492166]
[1759847128657,0.52622839,123100.0,123090.0,0.00228166]
[1759847128875,0.51922839,123100.0,123090.0,0.10376166]
[1759847129218,0.52622839,123100.0,123090.0,0.10376166]
[1759847130074,0.53437574,123100.0,123090.0,0.10376166]
[1759847131945,0.58437574,123100.0,123090.0,0.10376166]
[1759847132297,0.92437574,123100.0,123090.0,0.18264166]
[1759847133215,0.92437574,123100.0,123090.0,0.23700166]
[1759847134840,0.47123159,123100.0,123090.0,0.23700166]
[1759847135250,0.47123159,123100.0,123090.0,0.00228166]
[1759847135614,0.47123159,123100.0,123090.0,0.10940166]
[1759847135889,0.47123159,123100.0,123090.0,0.32140166]
[1759847138864,0.47123159,123100.0,123090.0,0.00228166]
[1759847139075,1.46049724,123100.0,123090.0,0.23700166]
[1759847139287,0.54098962,123100.0,123090.0,0.23700166]
[1759847140101,0.54098962,123100.0,123090.0,0.23679515]
[1759847140236,0.47123159,123100.0,123090.0,0.23679515]
[1759847142259,0.47123159,123100.0,123090.0,0.23675515]
[1759847142517,0.47123159,123100.0,123090.0,0.32119515]
[1759847144164,0.47123159,123100.0,123090.0,0.23671515]
[1759847144378,0.47123159,123100.0,123090.0,0.32115515]
[1759847145924,0.28858953,123100.0,123090.0,0.40115195]
[1759847146327,0.30632953,123100.0,123090.0,0.40115195]
[1759847146530,0.36851953,123100.0,123090.0,0.32115515]
[1759847146799,0.32445953,123100.0,123090.0,0.32115515]
[1759847146993,0.36851953,123100.0,123090.0,0.32115515]
[1759847147150,0.28858953,123100.0,123090.0,0.32115515]
[1759847147354,0.28858953,123100.0,123090.0,0.40115195]
[1759847148184,0.30632953,123100.0,123090.0,0.40115195]
[1759847149711,0.31032953,123100.0,123090.0,0.40115195]
[1759847150462,0.31032953,123100.0,123090.0,0.56363468]
[1759847150746,0.31032953,123100.0,123090.0,0.40115195]
[1759847151046,0.14786,123100.0,123090.0,0.56363468]
[1759847151250,0.29258953,123100.0,123090.0,0.56363468]
[1759847151607,0.39013953,123100.0,123090.0,0.31667195]
[1759847151833,0.39013953,123100.0,123090.0,0.65879515]
[1759847153089,0.39013953,123100.0,123090.0,0.00207515]
[1759847153296,0.39013953,123100.0,123090.0,0.82123788]
[1759847153497,0.29258953,123100.0,123090.0,0.82123788]
[1759847153685,0.26282953,123100.0,123090.0,0.82123788]
[1759847153887,0.26282953,123100.0,123090.0,0.90123468]
[1759847154157,0.29165953,123100.0,123090.0,0.90123468]
[1759847155312,0.10036,123100.0,123090.0,0.90123468]
[1759847155500,0.083,123100.0,123090.0,0.90123468]
[1759847156487,0.076,123100.0,123090.0,0.24455468]
[1759847156679,0.23846953,123100.0,123090.0,0.16455788]
[1759847156900,0.28813953,123100.0,123090.0,0.82119788]
[1759847157100,0.09967,123100.0,123090.0,0.16255788]
[1759847157333,0.053,123100.0,123090.0,0.81919788]
[1759847157547,0.074,123100.0,123090.0,0.16255788]
[1759847157760,0.38068953,123100.0,123090.0,0.37030052]
[1759847157992,0.38068953,123100.0,123090.0,0.68922052]
[1759847158226,0.38068953,123100.0,123090.0,0.60482052]
[1759847158470,0.38068953,123100.0,123090.0,0.68922052]
[1759847159153,0.38068953,123100.0,123090.0,0.68918052]
[1759847160140,0.38068953,123100.0,123090.0,0.03258052]
[1759847160353,0.38068953,123100.0,123090.0,0.65663515]
[1759847162596,0.38068953,123100.0,123090.0,7.515e-05]
[1759847162804,0.46381159,123100.0,123090.0,0.08447515]
[1759847163018,0.46381159,123100.0,123090.0,0.26439515]
[1759847163603,0.46081159,123100.0,123090.0,0.26439515]
[1759847163805,0.44681159,123100.0,123090.0,0.26439515]
[1759847164221,0.47681159,123100.0,123090.0,0.26539515]
[1759847164429,0.47681159,123100.0,123090.0,0.08547515]
[1759847164430,0.54084583,123100.0,123090.0,0.08547515]
[1759847164646,1.21577935,123100.0,123090.0,0.00107515]
[1759847164852,1.21577935,123100.0,123090.0,0.08547515]
[1759847165057,1.21577935,123100.0,123090.0,0.12147515]
[1759847165266,1.21577935,123100.0,123090.0,0.00107515]
[1759847165404,1.21577935,123100.0,123090.0,0.31991515]
[1759847166045,1.22374692,123100.0,123090.0,0.23551515]
[1759847166482,1.22374692,123100.0,123090.0,0.00107515]
[1759847166725,1.22374692,123100.0,123090.0,0.23551515]
[1759847167275,0.16250914,123070.0,123060.0,0.33812]
[1759847167475,0.3889012,123070.0,123060.0,0.65710498]
[1759847167803,0.3889012,123070.0,123060.0,0.65771055]
[1759847168590,0.3919012,123070.0,123060.0,0.65771055]
[1759847168965,0.4139012,123070.0,123060.0,0.65871055]
[1759847170786,0.16827,123070.0,123060.0,0.66668953]
[1759847170999,0.23600914,123070.0,123060.0,0.66668953]
[1759847171203,0.4139012,123070.0,123060.0,0.09452953]
[1759847171379,0.4139012,123070.0,123060.0,0.32099055]
[1759847172190,0.47154208,123070.0,123060.0,0.00215055]
[1759847172338,0.47154208,123070.0,123060.0,0.14115055]
[1759847173384,0.46854208,123070.0,123060.0,0.14115055]
[1759847173558,0.46854208,123070.0,123060.0,0.14015055]
[1759847173801,0.44654208,123070.0,123060.0,0.14015055]
[1759847174024,0.47554208,123070.0,123060.0,0.14015055]
[1759847174217,0.4179012,123070.0,123060.0,0.14015055]
[1759847174634,0.4239012,123070.0,123060.0,0.14015055]
[1759847176432,0.4239012,123070.0,123060.0,0.23555055]
[1759847176639,0.4239012,123070.0,123060.0,0.00115055]
[1759847176863,1.17883152,123070.0,123060.0,0.31999055]
[1759847177069,1.17883152,123070.0,123060.0,0.23555055]
[1759847177280,1.17883152,123070.0,123060.0,0.25555055]
[1759847177487,1.17883152,123070.0,123060.0,0.02115055]
[1759847177708,0.503898,123070.0,123060.0,0.25555055]
[1759847177909,1.14383152,123070.0,123060.0,0.25555055]
[1759847178330,0.16254876,123040.0,123030.0,0.0004]
[1759847178538,0.16254876,123040.0,123030.0,0.32772753]
[1759847178539,0.24567082,123040.0,123030.0,0.32772753]
[1759847178756,0.38894082,123040.0,123030.0,0.31938494]
[1759847178967,0.38894082,123040.0,123030.0,0.31999071]
[1759847179647,0.30581876,123040.0,123030.0,0.31999071]
[1759847179825,0.16854876,123040.0,123030.0,0.56254948]
[1759847180056,0.18668876,123040.0,123030.0,0.56254948]
[1759847180349,0.21468876,123040.0,123030.0,0.56254948]
[1759847180480,0.24504876,123040.0,123030.0,0.56254948]
[1759847180708,0.21704876,123040.0,123030.0,0.56254948]
[1759847180926,0.24004876,123040.0,123030.0,0.56254948]
[1759847181156,0.04114,123040.0,123030.0,0.56254948]
[1759847181361,0.23404876,123040.0,123030.0,0.56254948]
[1759847181939,0.23804876,123040.0,123030.0,0.56254948]
[1759847182315,0.027,123040.0,123030.0,1.23059192]
[1759847182741,0.027,123040.0,123030.0,1.13431892]
[1759847182952,0.027,123040.0,123030.0,0.92625892]
[1759847183160,0.027,123040.0,123030.0,1.26625892]
[1759847186489,0.027,123040.0,123030.0,0.72549492]
[1759847186683,0.04514,123040.0,123030.0,1.24863792]
[1759847186887,0.23804876,123040.0,123030.0,0.00947915]
[1759847187098,0.33281876,123040.0,123030.0,0.43171915]
[1759847187301,0.33281876,123040.0,123030.0,0.66607915]
[1759847187494,0.33281876,123040.0,123030.0,0.43171915]
[1759847187734,0.33281876,123040.0,123030.0,0.65771071]
[1759847188156,0.38235423,123040.0,123030.0,0.57327071]
[1759847188363,0.41594082,123040.0,123030.0,0.00115071]
[1759847188583,0.41594082,123040.0,123030.0,0.31991071]
[1759847189008,0.41594082,123040.0,123030.0,0.00115071]
[1759847189214,0.47378849,123040.0,123030.0,0.31991071]
[1759847192105,0.47378849,123040.0,123030.0,0.00115071]
[1759847192310,0.47378849,123040.0,123030.0,0.31991071]
[1759847192849,1.14872201,123040.0,123030.0,0.00115071]
[1759847192974,1.48872201,123040.0,123030.0,0.00491071]
[1759847193182,1.55182467,123040.0,123030.0,1e-08]
[1759847193391,0.1625884,123010.0,123000.0,0.0004]
[1759847193603,0.1625884,123010.0,123000.0,0.0853429]
[1759847193604,0.24471046,123010.0,123000.0,0.0853429]
[1759847193813,0.38381046,123010.0,123000.0,0.0853429]
[1759847194427,0.38281046,123010.0,123000.0,0.0853429]
[1759847194702,0.38281046,123010.0,123000.0,0.3196629]
[1759847195080,0.41681046,123010.0,123000.0,0.3206629]
[1759847195270,0.47475019,123010.0,123000.0,0.3206629]
[1759847195485,0.42481046,123010.0,123000.0,0.3206629]
[1759847196315,0.42481046,123010.0,123000.0,0.3196629]
[1759847196491,0.39081046,123010.0,123000.0,0.3196629]
[1759847196707,0.41981046,123010.0,123000.0,0.3216629]
[1759847196905,0.41981046,123010.0,123000.0,0.0029029]
[1759847197109,0.44905019,123010.0,123000.0,0.3196629]
[1759847197441,0.47005019,123010.0,123000.0,0.3216629]
[1759847197807,0.47305019,123010.0,123000.0,0.3226629]
[1759847198232,0.44105019,123010.0,123000.0,0.3196629]
[1759847198638,0.38981046,123010.0,123000.0,0.3196629]
[1759847199014,0.39121046,123010.0,123000.0,0.3196629]
[1759847199223,0.39121046,123010.0,123000.0,0.2358289]
[1759847199430,0.39121046,123010.0,123000.0,0.6582289]
[1759847199636,0.39121046,123010.0,123000.0,0.0015089]
[1759847199814,0.39121046,123010.0,123000.0,0.3203089]
[1759847200235,0.42521046,123010.0,123000.0,0.3223089]
[1759847200408,0.48059019,123010.0,123000.0,0.3223089]
[1759847201007,0.42521046,123010.0,123000.0,0.3223089]
[1759847202061,0.42521046,123010.0,123000.0,0.0035089]
[1759847202272,0.42521046,123010.0,123000.0,0.1280289]
[1759847202824,0.42521046,123010.0,123000.0,0.0035089]
[1759847203249,0.42521046,123010.0,123000.0,0.1283489]
[1759847203396,0.50520726,123010.0,123000.0,0.1283489]
[1759847203618,0.50520726,123010.0,123000.0,0.0035089]
[1759847203816,0.50520726,123010.0,123000.0,0.3223089]
[1759847203998,0.50520726,123010.0,123000.0,0.0035089]
[1759847204204,0.50520726,123010.0,123000.0,0.1210689]
[1759847204997,0.50520726,123010.0,123000.0,0.3223089]
[1759847206616,0.42521046,123010.0,123000.0,0.3223089]
[1759847206826,0.42521046,123010.0,123000.0,0.0035089]
[1759847206969,0.42521046,123010.0,123000.0,0.3222689]
[1759847208153,0.42521046,123010.0,123000.0,0.2377889]
[1759847208356,0.42521046,123010.0,123000.0,0.3222689]
[1759847208587,0.48399019,123010.0,123000.0,0.3222689]
[1759847209832,0.49199673,123010.0,123000.0,0.2377889]
[1759847210027,0.49199673,123010.0,123000.0,0.3222689]
[1759847210614,0.49199673,123010.0,123000.0,0.0035089]
[1759847210848,0.48399019,123010.0,123000.0,0.3222689]
[1759847211062,0.42521046,123010.0,123000.0,0.3222689]
[1759847211451,0.42521046,123010.0,123000.0,0.0035089]
[1759847211651,0.42521046,123010.0,123000.0,0.3222689]
[1759847213005,0.42521046,123010.0,123000.0,0.0035089]
[1759847213207,0.42521046,123010.0,123000.0,0.3222689]
[1759847214103,0.48399019,123010.0,123000.0,0.3222689]
[1759847214523,0.48399019,123010.0,123000.0,0.0035089]
[1759847214721,0.42521046,123010.0,123000.0,0.3222689]
[1759847217270,0.42521046,123010.0,123000.0,0.3222289]
[1759847219142,0.42521046,123010.0,123000.0,0.0035089]
[1759847219359,0.2463784,123010.0,123000.0,0.3222289]
[1759847220015,0.3046184,123010.0,123000.0,0.3222289]
[1759847220268,0.3388184,123010.0,123000.0,0.3222289]
[1759847220446,0.3388184,123010.0,123000.0,0.6601889]
[1759847221065,0.2805784,123010.0,123000.0,0.82279052]
[1759847221431,0.2805784,123010.0,123000.0,0.6601889]
[1759847221845,0.2463784,123010.0,123000.0,0.6601889]
[1759847222040,0.08579,123010.0,123000.0,0.82279052]
[1759847222247,0.041,123010.0,123000.0,0.90278732]
[1759847222674,0.041,123010.0,123000.0,0.98590938]
[1759847223087,0.18812006,123030.0,123010.0,0.16257582]
[1759847223290,0.21744006,123030.0,123020.0,1.31921519]
[1759847223490,0.21744006,123030.0,123020.0,0.81921519]
[1759847224311,0.19762201,123040.0,123030.0,0.16256197]
[1759847224520,0.16309201,123040.0,123030.0,0.16256197]
[1759847224719,0.22655201,123040.0,123030.0,0.60483372]
[1759847225037,0.28518201,123040.0,123030.0,0.85187569]
[1759847225248,0.24365201,123040.0,123030.0,0.57212]
[1759847225417,0.24365201,123040.0,123030.0,0.6566]
[1759847225827,0.01797325,123040.0,123030.0,0.81916197]
[1759847226049,0.05054325,123040.0,123030.0,2.01713097]
[1759847226274,0.05854325,123040.0,123030.0,2.02995877]
[1759847226427,0.09454325,123040.0,123030.0,1.37761677]
[1759847226632,0.08654325,123040.0,123030.0,1.37661677]
[1759847226834,0.08654325,123040.0,123030.0,0.5574548]
[1759847227039,0.13329325,123040.0,123030.0,1.23915877]
[1759847227290,0.05654325,123040.0,123030.0,1.24015877]
[1759847227598,0.05654325,123040.0,123030.0,1.24315877]
[1759847227599,0.08654325,123040.0,123030.0,1.24315877]
[1759847229137,0.26652201,123040.0,123030.0,0.58655877]
[1759847229345,0.09254325,123040.0,123030.0,1.24407877]
[1759847231822,0.09254325,123040.0,123030.0,1.24395877]
[1759847232124,0.09254325,123040.0,123030.0,0.58755877]
[1759847232385,0.09254325,123040.0,123030.0,1.24395877]
[1759847232622,0.09254325,123040.0,123030.0,0.58755877]
[1759847232845,0.25509201,123040.0,123030.0,1.24395877]
[1759847233018,0.09254325,123040.0,123030.0,0.58755877]
[1759847233152,0.09254325,123040.0,123030.0,1.24395877]
[1759847233386,0.13929325,123040.0,123030.0,1.24395877]
[1759847233645,0.10997325,123040.0,123030.0,1.24395877]
[1759847234178,0.09254325,123040.0,123030.0,1.24395877]
[1759847234820,0.25509201,123040.0,123030.0,1.24391877]
[1759847235036,0.09254325,123040.0,123030.0,1.24391877]
[1759847236299,0.09254325,123040.0,123030.0,0.58755877]
[1759847236670,0.09254325,123040.0,123030.0,1.24391877]
[1759847237482,0.30184201,123040.0,123030.0,0.42732]
[1759847237682,0.36008201,123040.0,123030.0,0.82388197]
[1759847237884,0.31855201,123040.0,123030.0,0.82388197]
[1759847238106,0.30184201,123040.0,123030.0,0.82388197]
[1759847238677,0.30184201,123040.0,123030.0,0.90387877]
[1759847238924,0.37718201,123040.0,123030.0,0.6568368]
[1759847239126,0.39428201,123040.0,123030.0,0.66128]
[1759847239553,0.09254325,123040.0,123030.0,0.82384197]
[1759847239948,0.25509201,123040.0,123030.0,0.82384197]
[1759847240124,0.25509201,123040.0,123030.0,0.90383877]
[1759847240323,0.30184201,123040.0,123030.0,0.0849968]
[1759847240506,0.37718201,123040.0,123030.0,0.66128]
[1759847240711,0.37718201,123040.0,123030.0,0.82384197]
[1759847240940,0.33565201,123040.0,123030.0,0.82384197]
[1759847241168,0.31894201,123040.0,123030.0,0.82384197]
[1759847242117,0.31894201,123040.0,123030.0,0.66128]
[1759847242355,0.39428201,123040.0,123030.0,0.66128]
[1759847242543,0.39428201,123040.0,123030.0,0.0849968]
[1759847242760,0.47740407,123040.0,123030.0,0.005]
[1759847243235,0.47740407,123040.0,123030.0,0.02044]
[1759847243859,0.43540407,123040.0,123030.0,0.01544]
[1759847244302,0.43540407,123040.0,123030.0,0.01944]
[1759847244303,0.47140407,123040.0,123030.0,0.01944]
[1759847245204,0.47940407,123040.0,123030.0,0.01944]
[1759847245429,0.47940407,123040.0,123030.0,0.004]
[1759847245886,0.47940407,123040.0,123030.0,0.01208]
[1759847247647,0.47940407,123040.0,123030.0,0.004]
[1759847247884,1.41416444,123040.0,123000.0,0.0009029]
[1759847248120,0.1625884,123010.0,123000.0,0.0853429]
[1759847248349,0.1625884,123010.0,123000.0,0.1026629]
[1759847248562,0.30009592,123010.0,123000.0,0.1026629]
[1759847248785,0.33429592,123010.0,123000.0,0.10306691]
[1759847249200,0.41741798,123010.0,123000.0,0.10306691]
[1759847249672,0.44241798,123010.0,123000.0,0.10306691]
[1759847250122,0.44641798,123010.0,123000.0,0.10306691]
[1759847250353,0.44641798,123010.0,123000.0,0.00130691]
[1759847250585,0.44641798,123010.0,123000.0,0.23526691]
[1759847251042,0.41390046,123010.0,123000.0,0.23526691]
[1759847251748,0.40990046,123010.0,123000.0,0.23526691]